Cogmind - Beta 15 @@@ ROGUE MODE // 2025.09.10 @ 21:26:21 Player: Ender Result: Destroyed by D-53 Grenadier with Mini Grenade Launcher Performance ------------- Evolutions (0) 0 Regions Visited (2) 400 Robots Destroyed (8) 40 Value Destroyed (112) 112 Prototype IDs (0) 0 Alien Tech Used (0) 0 Bonus (-35) -35 TOTAL SCORE: 517 Bonus ------- Friendly Fire -35 Cogmind --------- Core Integrity 0/250 Matter 120/300 Energy 100/100 System Corruption 0% Temperature Cool (0) Movement Core (100) Ox1 Location -10/Mines Parts ------- > --- POWER (1) -------- (None) > --- PROPULSION (2) --- (None) > --- UTILITY (2) ------ Small Storage Unit > --- WEAPON (2) ------- (None) > --- INVENTORY (8) ---- Light Ion Engine Light Treads Light Treads Aluminum Leg Aluminum Leg Seismic Detector EM Pulse Gun Light Assault Rifle Peak State ------------ > --- POWER ------------ Ion Engine > --- PROPULSION ------- Aluminum Leg Aluminum Leg > --- UTILITY ---------- Small Storage Unit Small Storage Unit > --- WEAPON ----------- EM Pulse Gun Assault Rifle > --- INVENTORY -------- Light Ion Engine Light Treads Light Treads Wheel Compact Wheel Small Laser [Rating: 7] Favorites ----------- Power Ion Engine Engine Ion Engine Propulsion Aluminum Leg Leg Aluminum Leg Wheel Wheel Utility Small Storage Unit Device Seismic Detector Storage Small Storage Unit Processor Targeting Computer Weapon Assault Rifle Energy Gun EM Pulse Gun Ballistic Gun Assault Rifle Launcher Grenade Launcher Build | -11 -10 -10 ------- Run | Yrd Mat Min Slots Evolved . | . . . Power . | . . . Propulsion . | . . . Utility . | . . . Weapon . | . . . Parts Attached 13 | 8 5 . Power 1 | 1 . . Engine 1 | 1 . . Core . | . . . Reactor . | . . . Propulsion 5 | 2 3 . Treads . | . . . Leg 2 | 2 . . Wheel 3 | . 3 . Hover . | . . . Flight . | . . . Utility 4 | 3 1 . Device 1 | 1 . . Storage 2 | 2 . . Processor 1 | . 1 . Hackware . | . . . Protection . | . . . Artifact . | . . . Weapon 3 | 2 1 . Energy Gun 1 | 1 . . Energy Cannon . | . . . Ballistic Gun 1 | 1 . . Ballistic Cannon . | . . . Launcher 1 | . 1 . Special Weapon . | . . . Impact Weapon . | . . . Slashing Weapon . | . . . Piercing Weapon . | . . . Special Melee Weapon . | . . . Unidentified Prototypes . | . . . Parts Lost 5 | . . 5 Power 1 | . . 1 Propulsion 2 | . . 2 Utility 1 | . . 1 Weapon 1 | . . 1 Highest Loss Streak 5 | . . 5 To Critical Strikes . | . . . Average Backups 6 | 3 7 8 Power . | . 1 1 Propulsion 3 | 2 3 4 Utility . | . . 1 Weapon 1 | . 1 2 Tool/Special . | . . . Unused Backups 5 | . 1 4 Power 1 | . . 1 Propulsion 2 | . . 2 Utility . | . . . Weapon 2 | . 1 1 Tool/Special . | . . . Average Slot Usage (%) 98 | . 100 93 Engine 14 | . 14 14 Leg 7 | . 10 . Wheel 19 | . 17 26 Device 1 | . 1 . Storage 14 | . 14 14 Processor 12 | . 12 12 Energy Gun 2 | . 3 . Ballistic Gun 13 | . 14 12 Launcher 11 | . 10 12 Peak Build Rating 7 | 7 7 7 Average Rating 6 | 5 6 6 On Entrance 4 | . 7 7 Naked Turns . | . . . Heaviest Build 15 | 15 15 15 Greatest Support 26 | 20 26 20 Greatest Overweight (x) . | . . . Average Overweight (x) . | . . . Largest Inventory Capacity 8 | 8 8 8 Average Capacity 7 | 7 8 8 Most Carried 8 | 6 8 8 Average Carried 6 | 3 7 8 Final Capacity 8 | 8 8 8 Final Carried 8 | 6 8 8 Class Distribution -------------------- 100% | Mutant Dominant Class ---------------- Mutant | -10/Materials Mutant | -10/Mines Resources | -11 -10 -10 ----------- Run | Yrd Mat Min Matter Collected 296 | 289 7 . Remotely . | . . . Salvage Created 180 | 98 55 27 Parts 16 | 7 9 . Haulers Intercepted . | . . . Recyclers Shooed . | . . . Parts Field Recycled . | . . . Retrieved Matter . | . . . Parts Self-Destructed . | . . . Prevented . | . . . Kills | -11 -10 -10 ------- Run | Yrd Mat Min Combat Hostiles Destroyed 21 | . 5 16 AOE 21 | . 5 16 Classes Destroyed 6 | 2 3 1 Worker 1 | . 1 . Tunneler 1 | 1 . . Recycler 1 | 1 . . Swarmer 3 | . 3 . Grunt 2 | . 2 . Assembled 16 | . . 16 Best Kill Streak 16 | 2 3 16 Combat Bots Only 16 | . 3 16 Max Kills in Single Turn 4 | 1 3 4 Gunslinging . | . . . Exploded 4 | . 3 4 Melee . | . . . Uniques/NPCs Destroyed . | . . . Combat | -11 -10 -10 -------- Run | Yrd Mat Min Hostile Shots Fired 36 | . 19 17 Missed 11 | . 6 5 Hits 25 | . 13 12 Melee 2 | . . 2 Projectile 23 | . 13 10 AOE 7 | . . 7 Critical Strikes 1 | . . 1 Damage Taken 615 | . 107 508 Core 251 | . 29 222 Absorbed by Shields . | . . . Core Remaining (%) 100 | 100 . . Volleys Fired 18 | 3 6 9 Largest 2 | 2 2 2 Hottest 60 | 60 50 50 Shots Fired 25 | 6 8 11 Gun 10 | 6 2 2 Cannon . | . . . Launcher 15 | . 6 9 Special . | . . . Kinetic 7 | 3 2 2 Thermal . | . . . Explosive 15 | . 6 9 Electromagnetic 3 | 3 . . Robot Hit Streak 3 | 2 1 3 Robot Miss Streak 3 | 2 2 3 Penetration Max . | . . . Secondary Targets . | . . . Shots Hit Robots 7 | 2 1 4 Core Hits 44 | 2 8 34 Critical Kills . | . . . Critical Parts Destroyed . | . . . Critical Strikes . | . . . Melee Attacks . | . . . Impact . | . . . Slashing . | . . . Piercing . | . . . Sneak Attacks . | . . . Combat Hostiles . | . . . Follow-up Attacks . | . . . Damage Inflicted 1583 | 27 394 1162 Guns 54 | 27 12 15 Cannons . | . . . Explosions 1529 | . 382 1147 Melee . | . . . Ramming . | . . . Kinetic 27 | . 12 15 Thermal . | . . . Explosive 1529 | . 382 1147 Electromagnetic 27 | 27 . . Impact . | . . . Slashing . | . . . Piercing . | . . . Highest Corruption . | . . . Average Corruption . | . . . Corruption Purged . | . . . Corruption Blocked . | . . . Overload Shots . | . . . Overflow Damage 39 | . . 39 Projectiles . | . . . Explosions 39 | . . 39 Melee . | . . . Knockbacks . | . . . Impact . | . . . Kinetic . | . . . Secondary . | . . . Self-Inflicted Damage 55 | . . 55 Shots 2 | . . 2 Rammed . | . . . Targets Rammed . | . . . Kicked . | . . . Crushed . | . . . Highest Temperature 2 | . 2 . Average Temperature 1 | . 1 . Received Heat Transfer 18 | . 18 . Siege Activations . | . . . Martial Activations . | . . . Shielding Activations . | . . . Robots Disrupted . | . . . Combat Hostiles . | . . . Robots Corrupted . | . . . Combat Hostiles . | . . . Parts Fried . | . . . Impact Corruptions . | . . . Robots Melted . | . . . Combat Hostiles . | . . . Parts Melted . | . . . Heat Transferred . | . . . Parts Sabotaged . | . . . Parts Stolen . | . . . Parts Stripped . | . . . Power Chain Reactions . | . . . Alert | -11 -10 -10 ------- Run | Yrd Mat Min Maximum Alert Level . | . . . Low Security (%) 100 | 100 100 100 Level 1 . | . . . Level 2 . | . . . Level 3 . | . . . Level 4 . | . . . Level 5 . | . . . High Security . | . . . Max Security . | . . . Peak Influence 81 | 10 81 41 Initial 22 | . . 22 Average 20 | . 29 23 Influence Increases 215 | 10 162 43 Destroy 0b10 Robot/C 100 | . 100 . Destroy 0b10 Robot/NC 15 | 10 5 . Destroy Leader 20 | . 20 . Successful Hack 2 | . 2 . Destroy Structure 78 | . 35 43 Influence Decreases 215 | 10 103 102 Entered New Map 37 | . . 37 Time Decay 148 | 10 103 35 Lost Part 30 | . . 30 Squads Dispatched 1 | . 1 . Investigation . | . . . Extermination . | . . . Reinforcement 1 | . 1 . Assault . | . . . Garrison . | . . . Intercept . | . . . Searches Triggered . | . . . Construction Impeded . | . . . Haulers Reinforced . | . . . Active Scanning Responses . | . . . Cargo Convoy Interrupts . | . . . Stealth | -11 -10 -10 --------- Run | Yrd Mat Min Distress Signals . | . . . Communications Jammed . | . . . Distress Signals . | . . . Times Spotted 28 | . 6 22 Peak Tracking Total 20 | . 3 20 Tactical Retreats 1 | . . 1 Traps | -11 -10 -10 ------- Run | Yrd Mat Min Traps Triggered . | . . . Indirectly . | . . . Trap Hack Attempts . | . . . Triggered . | . . . Disarmed . | . . . Reprogrammed . | . . . Reused . | . . . Traps Extracted . | . . . Installed . | . . . Triggered . | . . . Machines | -11 -10 -10 ---------- Run | Yrd Mat Min Machines Disabled . | . . . Max in Single Turn . | . . . Machines Repaired . | . . . Machines Dismantled . | . . . Machines Sabotaged . | . . . Overloaded Fab Kills . | . . . Hacking | -11 -10 -10 --------- Run | Yrd Mat Min Machines Accessed 2 | . 2 . Terminals 1 | . 1 . Fabricators . | . . . Repair Stations 1 | . 1 . Recycling Units . | . . . Scanalyzers . | . . . Garrison Access . | . . . Total Hacks 6 | . 6 . Successful 2 | . 2 . Failed 4 | . 4 . Catastrophic . | . . . Database Lockouts . | . . . Manual 2 | . 2 . Terminals 2 | . 2 . Fabricators . | . . . Repair Stations 4 | . 4 . Recycling Units . | . . . Scanalyzers . | . . . Garrison Access . | . . . Terminal Hacks . | . . . Fabricator Hacks . | . . . Repair Station Hacks 2 | . 2 . Scan Component 2 | . 2 . Recycling Unit Hacks . | . . . Scanalyzer . | . . . Garrison Access Hacks . | . . . Unauthorized Hacks . | . . . Terminals . | . . . Fabricators . | . . . Repair Stations . | . . . Recycling Units . | . . . Scanalyzers . | . . . Garrison Access . | . . . Data Cores Recovered . | . . . Used . | . . . Hacking Detections 2 | . 2 . Full Trace Events . | . . . Feedback Events . | . . . Feedback Blocked . | . . . Robot Schematics Acquired . | . . . Robots Built . | . . . Authchips . | . . . Time . | . . . Total Robot Build Rating . | . . . Part Schematics Acquired . | . . . Parts Built . | . . . Authchips . | . . . Time . | . . . Total Part Build Rating . | . . . Parts Repaired . | . . . Time . | . . . Parts Recycled . | . . . Recycled Matter . | . . . Retrieved Matter . | . . . Retrieved Components . | . . . Parts Scanalyzed . | . . . Part Schematics Acquired . | . . . Parts Damaged . | . . . Bothacking | -11 -10 -10 ------------ Run | Yrd Mat Min Used RIF Installer . | . . . Robots Hacked . | . . . Non-combat . | . . . Combat . | . . . Robot Hacks Applied . | . . . Relay Couplers Released . | . . . Fabnet Peak Effective % . | . . . Robots Rewired . | . . . Allies Hacked . | . . . Hacks Repelled . | . . . Allies | -11 -10 -10 -------- Run | Yrd Mat Min Total Allies . | . . . Largest Group . | . . . Highest-Rated Group . | . . . Highest-Rated Ally . | . . . Total Orders . | . . . Ally Attacks . | . . . Total Damage . | . . . Kills . | . . . Allies Corrupted . | . . . Allies Melted . | . . . Intel | -11 -10 -10 ------- Run | Yrd Mat Min Active Infowar (turns) 55 | 23 32 . Seismic 55 | 23 32 . Robot Analysis Total . | . . . Derelict Logs Recovered 1 | . . 1 Drone Launches . | . . . Drone Recoveries . | . . . Exploration | -11 -10 -10 ------------- Run | Yrd Mat Min Turns Passed 493 | 123 289 81 Spaces Moved 430 | 82 273 75 Core 6 | 6 . . Treads . | . . . Legs 150 | 76 74 . Wheels 274 | . 199 75 Hover . | . . . Flight . | . . . Fastest Speed 50 | 50 80 80 Average Speed 96 | 114 95 80 Slowest Speed 120 | 120 120 80 Overloaded Moves . | . . . Propulsion Burnouts . | . . . Robots Hopped . | . . . Potential Cave-ins . | . . . Cave-ins Triggered . | . . . Exploration Rate (%) 23 | 4 40 25 Regions Visited 2 Branch Regions 1 Pre-discovered Areas 1 | . . 1 Known Exits Taken . | . . . Unknown Exits Taken 2 | 1 1 . Scrap Searched . | . . . Spaces Dug . | . . . Terrain Destroyed 81 | . 32 49 Melee . | . . . Projectile . | . . . AOE 81 | . 32 49 Terrain Rammed . | . . . Walls Destroyed . | . . . Machines Disabled . | . . . Actions | -11 -10 -10 --------- Run | Yrd Mat Min Total 480 | 101 294 85 Wait 5 | 2 3 . Move 428 | 81 272 75 Hop . | . . . Pick Up 10 | 6 4 . Fast Attach 9 | 8 1 . Attach 1 | . 1 . Detach . | . . . Swap 3 | . 3 . Drop 6 | 1 4 1 Fire 18 | 3 6 9 Melee . | . . . Ram . | . . . Kick . | . . . Crush . | . . . Escape Stasis . | . . . Rewire . | . . . Trap . | . . . Miscellaneous . | . . . Route ------- -11/Scrapyard -10/Materials (discovered 2 exits: [*Min x2]) -10/Mines History --------- Turn | Location | Event 11 | -11/Scrapyard | Discovered new exit (range 16) 124 | -11/Scrapyard | Entered Materials 275 | -10/Materials | Discovered new exit (range 15) 283 | -10/Materials | Discovered new exit (range 16) 306 | -10/Materials | Build established: Mutant 413 | -10/Materials | Entered Mines 437 | -10/Mines | Assembled infested the area 442 | -10/Mines | Assisted by a Guerilla fighting off Assembled 451 | -10/Mines | Learned location of Zion (-7) 466 | -10/Mines | Core integrity fell below 50% 487 | -10/Mines | Core integrity fell below 20% 494 | -10/Mines | Destroyed by D-53 Grenadier with Mini Grenade Launcher Last Messages --------------- 00464_ R3-O79(h) destroyed. 00465_ Knocked back. 00467_ as-49692 destroyed. 00467_ Destroyed Asb. Hover Unit. 00467_ as-79130 destroyed. 00470_ Destroyed Asb. F-torch. 00470_ as-50624 destroyed. 00470_ as-69744 destroyed. [Achievement: Exterminator] 00483_ as-10514 destroyed. 00484_ C-30 ARC bursts open, deploying its payload. 00484_ D-53 Grenadier unfolds itself. 00486_ as-70628 destroyed. 00487_ Assault Rifle destroyed. 00487_ Wheel destroyed. 00487_ Targeting Computer destroyed. 00487_ Dropped Grenade Launcher. 00493_ Wheel destroyed. 00493_ Ion Engine destroyed. 00494_ The unstable cave ceiling collapses. Map ----- +----------------------------------------------------+ | ????????????????? ???????### ##??????????? | | ?????????????????? ???######## #### ##?????? | | ??????????????????? #???# #?????? | | ???????????????????# #???# #####]% #### #?????? | | ???????????????????# ##### # % #??????????? | | ???????????????????# ## ! #??????????? | | ???????????????????# #??????????? | | ???????????????????# #??????????? | | ??????????????????## ## % ###??????????? | | ????????????????### #?? #???????????? | | ???????????????## #?? #???????????? | | ???????????????# ##?? ##??????????? | | ???????????????# #??? % ???????????? | | ???????????????# ##??%% ????????????? | | ???????????????## #??? % ???????????? | | ????????????????## #??# ???????????? | | ?????????????????## #?? ???????????? | | ??????????????????# ### " ??????????? | | ???????????????????# # ??????????? | | ????????????????????# ## ???????????? | | ????????????????????# # ???????????? | | ?????????????????#### # ????????????? | | ?????????????????# #????????????????? | | ?????????????????# #????????????????? | | ?????????????????## #????????????????? | | ??????????????????#### d@ #????????????????? | | ?????????????????????# d #????????????????? | | ?????????????????????# #????????????????? | | ?????????????????????# # # #????????????????? | | ?????????????????????# # # ##????????????????? | | ?????????????????????% #######?????????????????? | | ????????????????????## ????????????????????????? | | ?????????????????????# ????????????????????????? | | ????????????????????? ????????????????????????? | | ????????????????????? ????????????????????????? | | ????????????????????????????????????????????????? | | ????????????????????????????????????????????????? | | ????????????????????????????????????????????????? | | ????????????????????????????????????????????????? | | ????????????????????????????????????????????????? | | ????????????????????????????????????????????????? | | ????????????????????????????????????????????????? | | ????????????????????????????????????????????????? | | ????????????????????????????????????????????????? | | ????????????????????????????????????????????????? | | ????????????????????????????????????????????????? | | ????????????????????????????????????????????????? | | ????????????????????????????????????????????????? | | ????????????????????????????????????????????????? | | ????????????????????????????????????????????????? | +----------------------------------------------------+ Best States ------------- Heat Dissipation 25 Energy Generation 10 Energy Capacity 250 Matter Stores 300 Matter Capacity 300 Sight Range 16 Terrain Scan Density 10 Evasion (%) 55 Targeting Accuracy 5 Item Schematics ----------------- None Robot Schematics ------------------ None Fabricated ------------ Nothing Repaired ---------- Nothing Alien Tech Used ----------------- None Achievements -------------- Exterminator Challenges ------------ None Game ------ Seed ChargeSensorAutogun Manual? 0 Play Time 00:10:55 Cumulative 92.0 hours Start 2025.09.10 @ 21:17:49 End 2025.09.10 @ 21:26:21 Sessions 1 Manual Loads 0 Difficulty Rogue Special Mode None Game No. 39 Rogue 14 Adventurer 24 Explorer 1 Win Type - Total 0 Types 0/0/0/0/0/0/0/0/0/0 Lore% 23 Gallery% 42 Achievement% 40 Wizard Run 0 Options --------- Layout 0 ASCII 0 Keyboard 0 Movement Numpad Keybinds 0 Fullscreen 1 Font 18/SmallcapsGlow Map View 76x50 Zoom Use 37% Tactical HUD 1 Map Filters NONE Filters NONE Steam 1 RUN: c3f18cff-9a54-4fab-b9e0-1470da52ac01